Cogmind - Beta 10.1 @@@ ROGUE MODE // 2020.10.04 @ 21:57:47 Player: Hermelin Result: Destroyed by H-55 Commando with Gauss Rifle Performance ------------- Evolutions (1) 500 Regions Visited (5) 1000 Robots Destroyed (66) 330 Value Destroyed (1588) 1588 Prototype IDs (36) 720 Alien Tech Used (0) 0 Bonus (300) 300 TOTAL SCORE: 4438 Bonus ------- Aligned with FarCom 300 Cogmind --------- Core Integrity 0/400 Matter 253/300 Energy 64/100 System Corruption 8% Temperature Cool (18) Movement Treading (260) Ox5 Location -9/Exiles Parts ------- > --- POWER (1) -------- (None) > --- PROPULSION (2) --- Light Treads > --- UTILITY (3) ------ High-capacity Storage Unit Humpback > --- WEAPON (3) ------- (None) > --- INVENTORY (32) --- Ion Engine Improved Ion Engine Light Nuclear Core Light Treads Light Treads Light Treads Cooling System Medium Storage Unit High-capacity Storage Unit High-capacity Storage Unit Humpback Weapon Shielding Light Armor Plating Light Armor Plating Light Armor Plating Hardened Light Armor Plating Shield Generator PSU Rigger EM Pulse Gun Light Assault Rifle Light Assault Rifle Heavy Assault Rifle Autogun Autogun Datajack Mining Claw Peak State ------------ > --- POWER ------------ Improved Ion Engine > --- PROPULSION ------- Light Treads Wheel > --- UTILITY ---------- High-capacity Storage Unit High-capacity Storage Unit High-capacity Storage Unit > --- WEAPON ----------- Heavy EM Pulse Gun Heavy Assault Rifle Autogun > --- INVENTORY -------- Ion Engine Improved Ion Engine Light Treads Light Treads Light Treads Compact Wheel Cooling System Medium Storage Unit Medium Storage Unit Weapon Shielding Light Armor Plating Shield Generator EM Pulse Gun Heavy EM Pulse Gun Heavy EM Pulse Gun Heavy Assault Rifle Autogun Autogun Autogun Grenade Launcher Datajack Mining Claw [Rating: 16] Favorites ----------- Power Ion Engine Engine Ion Engine Propulsion Light Treads Treads Light Treads Wheel Wheel Utility High-capacity Storage Unit Device Tractor Beam Storage High-capacity Storage Unit Weapon Heavy Assault Rifle Energy Gun Heavy EM Pulse Gun Ballistic Gun Heavy Assault Rifle Launcher Grenade Launcher Special Melee Weapon Datajack Build | -11 -10 -10 -9 -9 -9 ------- Run | Scr Mat Min Mat Min Exi Slots Evolved 2 | . . . 2 . . Power . | . . . . . . Propulsion . | . . . . . . Utility 1 | . . . 1 . . Weapon 1 | . . . 1 . . Parts Attached 43 | 8 13 2 4 10 6 Power 5 | 2 1 1 . 1 . Engine 5 | 2 1 1 . 1 . Core . | . . . . . . Reactor . | . . . . . . Propulsion 6 | 2 1 . . 2 1 Treads 4 | 1 1 . . 1 1 Leg . | . . . . . . Wheel 2 | 1 . . . 1 . Hover . | . . . . . . Flight . | . . . . . . Utility 9 | 2 5 . 1 . 1 Device 1 | 1 . . . . . Storage 8 | 1 5 . 1 . 1 Processor . | . . . . . . Hackware . | . . . . . . Protection . | . . . . . . Artifact . | . . . . . . Weapon 23 | 2 6 1 3 7 4 Energy Gun 8 | 2 . . 2 2 2 Energy Cannon . | . . . . . . Ballistic Gun 9 | . 4 . 1 4 . Ballistic Cannon . | . . . . . . Launcher 5 | . 2 1 . 1 1 Special Weapon . | . . . . . . Impact Weapon . | . . . . . . Slashing Weapon . | . . . . . . Piercing Weapon . | . . . . . . Special Melee Weapon 1 | . . . . . 1 Unidentified Prototypes . | . . . . . . Parts Lost 17 | . . . . 9 8 Power 2 | . . . . 1 1 Propulsion 4 | . . . . 2 2 Utility . | . . . . . . Weapon 11 | . . . . 6 5 Highest Loss Streak 8 | . . . . 3 8 Average Slot Usage (%) 95 | . 100 100 99 96 89 Engine 12 | . 14 14 11 11 11 Treads 12 | . 14 14 11 11 11 Wheel 12 | . 14 14 11 11 11 Storage 28 | . 27 28 33 33 23 Energy Gun 3 | . . . 11 9 . Ballistic Gun 24 | . 26 25 21 19 28 Special Melee Weapon 1 | . . . . . 3 Naked Turns . | . . . . . . Heaviest Build 124 | 14 75 77 112 112 124 Greatest Support 20 | 20 20 10 10 20 16 Greatest Overweight (x) 11 | 2 7 7 11 11 7 Average Overweight (x) 6 | . 5 7 11 7 6 Largest Inventory Capacity 32 | 6 20 20 28 28 32 Average Capacity 25 | 5 19 20 28 28 31 Most Carried 32 | 6 20 20 28 28 32 Average Carried 23 | 3 18 19 23 25 28 Final Capacity 32 | 6 20 20 28 28 32 Final Carried 28 | 6 19 20 28 26 27 Class Distribution -------------------- 51% | Hauler-Mutant 41% | Hauler-Gunner 7% | Mutant Dominant Class ---------------- Hauler-Mutant | -10/Materials Hauler-Mutant | -10/Mines Hauler-Gunner | -9/Materials Hauler-Gunner | -9/Mines Hauler-Gunner | -9/Exiles Resources | -11 -10 -10 -9 -9 -9 ----------- Run | Scr Mat Min Mat Min Exi Matter Collected 1490 | 280 584 93 118 385 30 Remotely 81 | 81 . . . . . Salvage Created 2106 | 129 669 59 291 767 191 Parts 139 | 7 51 7 22 41 11 Haulers Intercepted 2 | . 2 . . . . Recyclers Shooed . | . . . . . . Parts Field Recycled . | . . . . . . Retrieved Matter . | . . . . . . Parts Self-Destructed . | . . . . . . Prevented . | . . . . . . Kills | -11 -10 -10 -9 -9 -9 ------- Run | Scr Mat Min Mat Min Exi Combat Hostiles Destroyed 52 | . 20 3 5 19 5 Guns 36 | . 14 1 5 14 2 AOE 16 | . 6 2 . 5 3 Classes Destroyed 12 | 2 5 . 2 1 2 Worker 1 | . . . . 1 . Tunneler 3 | 2 . . . 1 . Hauler 2 | . 2 . . . . Recycler 3 | 1 1 . . 1 . Operator 2 | . 2 . . . . Watcher 3 | . 1 . 2 . . Swarmer 18 | . 12 2 . 4 . Grunt 28 | . 8 1 2 14 3 Duelist 2 | . . . 1 1 . Sentry 2 | . . . 2 . . Hunter 1 | . . . . . 1 Programmer 1 | . . . . . 1 Best Kill Streak 6 | 2 6 2 3 5 5 Combat Bots Only 6 | . 6 2 3 4 5 Max Kills in Single Turn 3 | 1 3 2 2 2 3 Gunslinging 1 | . 1 . 1 . . Exploded 3 | . 3 2 . 2 3 Melee . | . . . . . . Uniques/NPCs Destroyed . | . . . . . . Combat | -11 -10 -10 -9 -9 -9 -------- Run | Scr Mat Min Mat Min Exi Damage Taken 2419 | . 330 94 134 815 1046 Core 463 | . 43 6 11 154 249 Absorbed by Shields . | . . . . . . Core Remaining (%) 90 | 100 . 80 . . . Volleys Fired 143 | 6 56 9 12 51 9 Largest 3 | 2 2 2 3 3 3 Hottest 108 | 100 46 46 91 108 83 Shots Fired 326 | 12 109 17 36 130 22 Gun 316 | 12 106 16 36 125 21 Cannon . | . . . . . . Launcher 10 | . 3 1 . 5 1 Special . | . . . . . . Kinetic 244 | . 106 16 24 85 13 Thermal 22 | 12 . . . 4 6 Explosive 10 | . 3 1 . 5 1 Electromagnetic 50 | . . . 12 36 2 Robot Hit Streak 14 | 7 11 2 14 10 6 Robot Miss Streak 7 | 1 7 2 2 4 5 Penetration Max . | . . . . . . Secondary Targets 3 | . 1 . 1 . 1 Max Gunslinging Chain 1 | . 1 . 1 . 1 Shots Hit Robots 198 | 9 62 9 25 79 14 Core Hits 92 | 4 30 4 11 31 12 Critical Hits 4 | . 2 . . 2 . Critical Kills 2 | . 2 . . . . Critical Parts Destroyed 2 | . . . . 2 . Melee Attacks 4 | . . . . . 4 Impact . | . . . . . . Slashing . | . . . . . . Piercing . | . . . . . . Sneak Attacks 4 | . . . . . 4 Combat Hostiles . | . . . . . . Follow-up Attacks . | . . . . . . Damage Inflicted 4149 | 110 1308 220 386 1699 426 Guns 2944 | 110 983 127 386 1155 183 Cannons . | . . . . . . Explosions 1205 | . 325 93 . 544 243 Melee . | . . . . . . Ramming . | . . . . . . Kinetic 2158 | . 983 127 243 695 110 Thermal 491 | 110 . . . 342 39 Explosive 888 | . 325 93 . 227 243 Electromagnetic 612 | . . . 143 435 34 Impact . | . . . . . . Slashing . | . . . . . . Piercing . | . . . . . . Highest Corruption 7 | . . . . . 7 Average Corruption 4 | . . . . . 4 Corruption Purged . | . . . . . . Overload Shots . | . . . . . . Overflow Damage 8 | . . . . 8 . Projectiles . | . . . . . . Explosions 8 | . . . . 8 . Melee . | . . . . . . Knockbacks . | . . . . . . Impact . | . . . . . . Kinetic . | . . . . . . Secondary . | . . . . . . Self-Inflicted Damage 64 | . . 13 . 51 . Shots 4 | . . 1 . 3 . Rammed . | . . . . . . Targets Rammed . | . . . . . . Kicked . | . . . . . . Crushed . | . . . . . . Highest Temperature 232 | 156 28 31 96 232 60 Average Temperature 41 | 64 8 12 37 68 29 Received Heat Transfer 591 | . 102 36 33 354 66 Siege Activations . | . . . . . . Robots Corrupted . | . . . . . . Combat Hostiles . | . . . . . . Parts Fried . | . . . . . . Impact Corruptions . | . . . . . . Robots Melted . | . . . . . . Combat Hostiles . | . . . . . . Parts Melted 1 | . . . . 1 . Heat Transferred 908 | 333 . . . 500 75 Parts Sabotaged . | . . . . . . Parts Stolen . | . . . . . . Parts Stripped . | . . . . . . Power Chain Reactions 3 | . . . . 3 . Missiles Intercepted . | . . . . . . Alert | -11 -10 -10 -9 -9 -9 ------- Run | Scr Mat Min Mat Min Exi Peak Influence 377 | 15 377 171 231 240 . Initial 111 | . 9 111 66 90 . Average 143 | 6 169 136 173 116 . Maximum Alert Level 1 | . 1 . 1 1 . Low Security (%) 71 | 100 54 100 55 91 . Level 1 28 | . 45 . 44 8 . Level 2 . | . . . . . . Level 3 . | . . . . . . Level 4 . | . . . . . . Level 5 . | . . . . . . High Security . | . . . . . . Max Security . | . . . . . . Squads Dispatched 8 | . 4 . 3 1 . Investigation 4 | . 2 . 2 . . Extermination . | . . . . . . Reinforcement 4 | . 2 . 1 1 . Assault . | . . . . . . Garrison . | . . . . . . Intercept . | . . . . . . Construction Impeded 1 | . . . . 1 . Haulers Reinforced . | . . . . . . Stealth | -11 -10 -10 -9 -9 -9 --------- Run | Scr Mat Min Mat Min Exi Distress Signals 3 | . 1 . 2 . . Communications Jammed . | . . . . . . Distress Signals . | . . . . . . Times Spotted 89 | . 36 6 10 21 16 Peak Tracking Total 15 | . 6 3 4 4 15 Tactical Retreats 7 | . 1 1 1 4 . Traps | -11 -10 -10 -9 -9 -9 ------- Run | Scr Mat Min Mat Min Exi Traps Triggered 2 | . 1 . 1 . . Indirectly . | . . . . . . Trap Hack Attempts . | . . . . . . Triggered . | . . . . . . Disarmed . | . . . . . . Reprogrammed . | . . . . . . Reused . | . . . . . . Traps Extracted . | . . . . . . Installed . | . . . . . . Triggered 1 | . . . . 1 . Machines | -11 -10 -10 -9 -9 -9 ---------- Run | Scr Mat Min Mat Min Exi Machines Disabled 2 | . . . . 2 . Max in Single Turn 1 | . . . . 1 . Machines Sabotaged . | . . . . . . Garrisons Compromised . | . . . . . . Overloaded Fab Kills . | . . . . . . Fab Network Shutdowns . | . . . . . . Hacking | -11 -10 -10 -9 -9 -9 --------- Run | Scr Mat Min Mat Min Exi Machines Accessed 10 | . 7 . 1 . 2 Terminals 6 | . 5 . 1 . . Fabricators . | . . . . . . Repair Stations . | . . . . . . Recycling Units 2 | . 2 . . . . Scanalyzers . | . . . . . . Garrison Access . | . . . . . . Total Hacks 26 | . 22 . 2 . 2 Successful 15 | . 12 . 1 . 2 Failed 10 | . 9 . 1 . . Catastrophic 2 | . 1 . 1 . . Database Lockouts 1 | . 1 . . . . Manual 18 | . 15 . 2 . 1 Terminals 21 | . 19 . 2 . . Fabricators . | . . . . . . Repair Stations . | . . . . . . Recycling Units 3 | . 3 . . . . Scanalyzers . | . . . . . . Garrison Access . | . . . . . . Terminal Hacks 8 | . 5 . 1 . 2 Record 1 | . . . . . 1 Robot Schematic 1 | . 1 . . . . Robot Analysis 3 | . 2 . 1 . . Locate Traps 1 | . 1 . . . . Hauler Manifests 1 | . 1 . . . . EX-Prototype ID Bank 1 | . . . . . 1 Fabricator Hacks . | . . . . . . Repair Station Hacks . | . . . . . . Recycling Unit Hacks 2 | . 2 . . . . Report Inventory 2 | . 2 . . . . Scanalyzer . | . . . . . . Garrison Access Hacks . | . . . . . . Unauthorized Hacks 5 | . 5 . . . . Terminals 4 | . 4 . . . . Track 2 | . 2 . . . . Botnet 1 | . 1 . . . . Operators 1 | . 1 . . . . Fabricators . | . . . . . . Repair Stations . | . . . . . . Recycling Units 1 | . 1 . . . . Tunnel 1 | . 1 . . . . Scanalyzers . | . . . . . . Garrison Access . | . . . . . . Data Cores Recovered . | . . . . . . Used . | . . . . . . Hacking Detections 6 | . 5 . 1 . . Full Trace Events 1 | . . . 1 . . Feedback Events . | . . . . . . Feedback Blocked . | . . . . . . Robot Schematics Acquired 1 | . 1 . . . . Robots Built . | . . . . . . Matter . | . . . . . . Time . | . . . . . . Total Robot Build Rating . | . . . . . . Part Schematics Acquired . | . . . . . . Parts Built . | . . . . . . Matter . | . . . . . . Time . | . . . . . . Total Part Build Rating . | . . . . . . Parts Repaired . | . . . . . . Time . | . . . . . . Parts Recycled . | . . . . . . Recycled Matter . | . . . . . . Retrieved Matter . | . . . . . . Retrieved Components . | . . . . . . Parts Scanalyzed . | . . . . . . Part Schematics Acquired . | . . . . . . Parts Damaged . | . . . . . . Bothacking | -11 -10 -10 -9 -9 -9 ------------ Run | Scr Mat Min Mat Min Exi Used RIF Installer . | . . . . . . Robots Hacked 4 | . . . . . 4 Non-combat 3 | . . . . . 3 Combat 1 | . . . . . 1 Robot Hacks Applied 4 | . . . . . 4 parse_system 4 | . . . . . 4 Relay Couplers Released . | . . . . . . Robots Rewired . | . . . . . . Allies Hacked . | . . . . . . Hacks Repelled . | . . . . . . Allies | -11 -10 -10 -9 -9 -9 -------- Run | Scr Mat Min Mat Min Exi Total Allies . | . . . . . . Largest Group . | . . . . . . Highest-Rated Group . | . . . . . . Highest-Rated Ally . | . . . . . . Total Orders . | . . . . . . Ally Attacks . | . . . . . . Total Damage . | . . . . . . Kills . | . . . . . . Allies Corrupted . | . . . . . . Allies Melted . | . . . . . . Intel | -11 -10 -10 -9 -9 -9 ------- Run | Scr Mat Min Mat Min Exi Robot Analysis Total 3 | . 2 . 1 . . Derelict Logs Recovered 2 | . . 1 . 1 . Drone Launches . | . . . . . . Drone Recoveries . | . . . . . . Exploration | -11 -10 -10 -9 -9 -9 ------------- Run | Scr Mat Min Mat Min Exi Turns Passed 4765 | 119 1491 166 388 1240 1361 Spaces Moved 2383 | 75 826 81 170 461 770 Core 6 | 6 . . . . . Treads 240 | 19 92 . . 129 . Legs . | . . . . . . Wheels 2137 | 50 734 81 170 332 770 Hover . | . . . . . . Flight . | . . . . . . Fastest Speed 50 | 50 90 150 190 160 120 Average Speed 167 | 109 150 150 190 198 167 Slowest Speed 260 | 160 220 150 190 260 170 Overloaded Moves . | . . . . . . Propulsion Burnouts . | . . . . . . Robots Hopped . | . . . . . . Cave-ins Triggered . | . . . . . . Exploration Rate (%) 52 | 5 94 29 16 83 87 Regions Visited 5 Branch Regions 3 Pre-discovered Areas 3 | . 1 . . 1 1 Known Exits Taken . | . . . . . . Unknown Exits Taken 5 | 1 1 1 1 1 . Scrap Searched . | . . . . . . Spaces Dug . | . . . . . . Terrain Destroyed 58 | . 21 10 . 23 4 Melee . | . . . . . . Projectile . | . . . . . . AOE 58 | . 21 10 . 23 4 Terrain Rammed . | . . . . . . Walls Destroyed . | . . . . . . Machines Disabled . | . . . . . . Actions | -11 -10 -10 -9 -9 -9 --------- Run | Scr Mat Min Mat Min Exi Total 2913 | 95 987 113 211 685 822 Wait 246 | 2 60 12 16 156 . Move 2378 | 74 825 80 169 460 770 Hop . | . . . . . . Pick Up 68 | 5 18 5 9 7 24 Fast Attach 12 | 7 3 . . 1 1 Attach 14 | . . . 3 8 3 Detach 2 | . 1 . 1 . . Swap 17 | 1 10 2 1 1 2 Drop 29 | . 14 5 . 1 9 Fire 143 | 6 56 9 12 51 9 Melee 4 | . . . . . 4 Ram . | . . . . . . Kick . | . . . . . . Crush . | . . . . . . Escape Stasis . | . . . . . . Rewire . | . . . . . . Trap . | . . . . . . Miscellaneous . | . . . . . . Route ------- -11/Scrapyard -10/Materials (discovered 3 exits: *Mat x2 / [*Min]) -10/Mines -9/Materials -9/Mines -9/Exiles (discovered 1 exit: [*Min]) History --------- Turn | Location | Event 27 | -11/Scrapyard | Discovered new exit (range 14) 120 | -11/Scrapyard | Entered Materials 308 | -10/Materials | Build established: Mutant 370 | -10/Materials | Discovered new exit (range 8) 599 | -10/Materials | Central database locked down 653 | -10/Materials | Build established: Hauler-Mutant 687 | -10/Materials | Discovered new exit (range 9) 992 | -10/Materials | Discovered new exit (range 12) 1611 | -10/Materials | Entered Mines 1640 | -10/Mines | Joined a pair of Derelicts in attacking an 0b10 outpost 1759 | -10/Mines | Discovered new exit (range 10) 1777 | -10/Mines | Entered Materials 1777 | -9/Materials | Evolved 2 slots: Utility x1, Weapon x1 1884 | -9/Materials | Discovered new exit (range 15) 2076 | -9/Materials | Build established: Hauler-Gunner 2165 | -9/Materials | Entered Mines 2373 | -9/Mines | Excavation squad dispatched 2373 | -9/Mines | A large section of the Mines collapsed 2623 | -9/Mines | Excavation squad dispatched 2733 | -9/Mines | Lost 3 parts (1n2w) 2873 | -9/Mines | Excavation squad dispatched 2894 | -9/Mines | Build established: Hauler-Mutant 3123 | -9/Mines | Excavation squad dispatched 3373 | -9/Mines | Excavation squad dispatched 3398 | -9/Mines | Deemed a non-threat by the Exiles lab entrance 3398 | -9/Mines | Discovered new exit (range 5) 3405 | -9/Mines | Entered Exiles 3429 | -9/Exiles | Discovered new exit (range 15) 3484 | -9/Exiles | Met 8R-AWN 3511 | -9/Exiles | Met EX-HEX 3570 | -9/Exiles | Met EX-DEC 3583 | -9/Exiles | Build established: Hauler-Gunner 3734 | -9/Exiles | Visited The Gauntlet 3937 | -9/Exiles | Learned location of Zion (-6) 4215 | -9/Exiles | Met EX-BIN 4235 | -9/Exiles | Aligned with FarCom system 4237 | -9/Exiles | Given EX-Vault access code 4529 | -9/Exiles | Opened EX-Vault 4531 | -9/Exiles | Build established: Hauler-Mutant 4571 | -9/Exiles | Warned to stay clear of 0b10 Research branches 4598 | -9/Exiles | Exiles lab attacked by MAIN.C 4680 | -9/Exiles | Found PSU Rigger 4743 | -9/Exiles | Core integrity fell below 50% 4757 | -9/Exiles | Core integrity fell below 20% 4766 | -9/Exiles | Destroyed by H-55 Commando with Gauss Rifle Last Messages --------------- 04756_ Machine disabled. 04756_ Penetrated by Slug. 04757_ Lgt. Assault Rifle destroyed. 04759_ Penetrated by Slug. 04759_ H-55 Commando destroyed. 04759_ G-34 Mercenary destroyed. 04759_ Penetrated by Slug. 04759_ Grenade Launcher destroyed. 04760_ Ion Engine destroyed. 04760_ Penetrated by Slug. 04760_ Sml. Laser destroyed. 04762_ Penetrated by Slug. 04762_ Com. Wheel destroyed. 04762_ Penetrated by Slug. 04763_ G-34 Mercenary destroyed. 04764_ Hvy. Assault Rifle destroyed. 04765_ Penetrated by Slug. 04765_ G-34 Mercenary destroyed. 04766_ Hvy. EM Pulse Gun destroyed. 04766_ Penetrated by Slug. Map ----- +----------------------------------------------------+ | ????????????????????????# #??"""""???????????? | | ????????????????????????# ## """#??????????? | | ????????????????????????# X""#??????????? | | ????????????????????????# ## """#??????????? | | ??????????????????####??# #??"""""???????????? | | ??????????????????"""""?# #???#?##???????????? | | ?????????????????"""" ## #??????????????????? | | ????????????????#""X" #??????????????????? | | ????????????????#" #??????????????????? | | ????????????????#" ## #??????????????????? | | ????????????????#""""""?# #?#########????????? | | ?????????????????#"###??# #?#"""""""#????????? | | ????????????????????????# #?#"""""""#????????? | | ????????????????????????# #?#"""""""#????????? | | ???????????????????????## ###"" """"#????????? | | ???????????????????????#" """"#????????? | | ???????????????????????#" """#????????? | | ???????????????????????#" """#????????? | | ???????????????????????#" """#????????? | | ??????????####?????????# """#????????? | | ?????????? """????????# """##???????? | | ??????????" """#???????## """""???????? | | ??????????" #????????# """##???????? | | ?????????"" #????????# "X" """""???????? | | ?????????"" "#????????# """ #????????? | | ????????? ""?????????#@ """""""""#????????? | | ??????????" "?????????## ###########????????? | | ??????????# #????????## #??????????????????? | | #####???### ###?######" ![!#??????????????????? | | """#####X# #"###""""""" !!% #?????????????????? | | """""" " "" =%|g##???#########????? | | "" """ " ! gg ####"""""""""##?? | | " " [%= " """ """"##? | | =%! "" " #? | | %* %g " """#? | | # g[%= " "#? | | ## h= " "## | | ?##" p h ""# | | ??#""" """" p "" | | ?##" ######""" | | ?#"" ""##????#####""" | | ##""" """##?????????##""" | | #""" """##???????????#"""" | | #""" ""#???????????##"" | | #"" ########??####"""" | | #""" ## ####""" | | #"" """" | | ##"" | | ?#"""" | | ?## " | +----------------------------------------------------+ Best States ------------- Heat Dissipation 28 Energy Generation 12 Energy Capacity 265 Matter Stores 300 Matter Capacity 300 Sight Range 16 Terrain Scan Density 10 Evasion (%) 42 Recoil Reduction 1 Item Schematics ----------------- None Robot Schematics ------------------ M-13 Machinist | -10/Materials | Hacked Fabricated ------------ Nothing Alien Tech Used ----------------- None Achievements -------------- Packrat Challenges ------------ None Game ------ Seed NeutrinoArmoredBlaster Manual? 0 Play Time 00:29:24 Cumulative 314.4 hours Start 2020.10.04 @ 21:30:06 End 2020.10.04 @ 21:57:47 Sessions 1 Manual Loads 0 Difficulty Rogue Special Mode None Game No. 124 Rogue 124 Adventurer 0 Explorer 0 Win Type - Total 4 Types 3/0/0/1/0/0/0/0/0 Lore% 84 Gallery% 90 Achievement% 72 Wizard Run 0 Options --------- ASCII 0 Keyboard 0 Movement Numpad Keybinds 0 Fullscreen 1 Font 18/SmallcapsGlow Map View 76x50 Tactical HUD 1 Map Filters NONE Filters NONE Steam X RUN: bbf3de9c-2a26-4523-903f-5f60a3cbc631